[Event "Silver Lake Festival 2022"]
[Site "Veliko Gradiste"]
[Date "2022.06.20"]
[Round "3.5"]
[White "Anuj Shrivatri"]
[Black "Tyurin, Artem"]
[Result "1/2-1/2"]
[ECO "D02"]
[WhiteElo "2356"]
[BlackElo "2174"]
[Annotator "TA"]
[PlyCount "130"]
[EventDate "2022.06.16"]
[EventType "swiss"]
[EventCountry "SRB"]
[SourceTitle "playchess.com"]
[Source "ChessBase"]
[SourceQuality "1"]
[TimeControl "5400+30"]

{[%evp 9,130,19,29,30,26,17,14,12,18,13,4,0,6,0,13,6,21,8,15,6,11,9,16,19,45,19,34,42,26,0,20,10,26,12,75,-8,0,-12,108,104,102,95,88,75,149,149,218,227,224,211,219,191,195,189,196,200,188,193,193,204,181,190,243,202,213,211,210,195,233,233,295,241,256,250,261,237,226,221,216,204,197,197,256,241,220,41,41,33,101,101,106,0,0,0,0,0,0,0,0,0,7,0,8,8,32,32,32,20,20,0,0,0,0,0,0,0,0,0,0,0,0,0,0]} 1. Nf3 {[%emt 0:00:16]} d5 {[%emt 0:00:06]} 2. g3 {[%emt 0:00:49]} Nc6 {[%emt 0:00:31]} 3. d4 {[%emt 0:00:23]} Bf5 {[%emt 0:00:03]} 4. Bg2 {[%emt 0:00:07]} Nb4 {[%emt 0:00:04]} 5. Na3 {[%emt 0:00:10]} e6 {[%emt 0:00:07]} 6. c3 {[%emt 0:11:48] D02: 1 d4 d5 2 Nf3 sidelines, including 2...Nf6 3 g3 and 2...Nf6 3 Bf4.} Nc6 {[%emt 0:00:04]} 7. Qb3 {[%emt 0:00:26]} Rb8 {[%emt 0:00:14]} 8. O-O {[%emt 0:01:08]} Be7 {[%emt 0:00:03] Against Nh4} 9. c4 {[%emt 0:06:33]} Nf6 {[%emt 0:04:53]} 10. cxd5 {[%emt 0:02:33]} exd5 {[%emt 0:10:12]} ({Don't do} 10... Nxd5 11. Ne5 Ndb4 12. Nxc6 Nxc6 13. Rd1 $16) 11. Nb5 {[%emt 0:06:58]} a6 {[%emt 0:08:06]} 12. Nc3 {[%emt 0:00:25]} O-O {[%emt 0:00:07] [#]} 13. Bf4 $146 {[%emt 0:05:49]} ({Predecessor:} 13. Bg5 Ne4 14. Bxe7 Nxe7 15. Rac1 c6 16. Qa3 Nd6 17. b3 Re8 18. Na4 Ng6 19. e3 {0-1 (89) Gledura,B (2626)-Martirosyan,H (2613) Chess.com INT 2020}) 13... Na5 {[%emt 0:03:41]} 14. Qd1 {[%emt 0:00:33]} Nc4 {[%emt 0:03:16]} 15. Ne5 {[%emt 0:06:28]} Nb6 {[%emt 0:03:57]} 16. Qb3 {[%emt 0:08:05]} Be6 {[%emt 0:04:36]} 17. Rac1 {[%emt 0:02:34]} Bd6 {[%emt 0:01:31]} 18. Bg5 {[%emt 0:07:34]} Be7 {[%emt 0:04:47]} 19. Bf4 {[%emt 0:09:40]} h6 {[%emt 0:14:25]} 20. Rfd1 {[%emt 0:02:17]} Bd6 {[%emt 0:02:00]} 21. a4 {[%emt 0:04:44][%cal Ba2a4,Ba4a5][%mdl 32]} Ne4 {[%emt 0:15:07]} (21... Na8 $11 {remains equal.}) 22. Nxe4 {[%emt 0:04:18]} ({Better is} 22. a5 $16 Nxc3 23. Rxc3 (23. Qxc3 Nc8 $11)) 22... dxe4 $11 {[%emt 0:00:37]} 23. Qc2 {[%emt 0:03:11]} Qe8 {[%emt 0:04:44]} (23... f5 $11 {keeps the balance.}) 24. a5 $1 $16 {[%emt 0:02:38]} ({But not} 24. Bxe4 Qxa4 25. Qxa4 Nxa4 $14) 24... Nd5 {[%emt 0:00:03]} 25. Bxe4 {[%emt 0:01:06][%cal Bg2e4,Be4d3,Bd3c4][%mdl 32]} Qb5 {[%emt 0:01:55]} 26. Bd3 {[%emt 0:01:33]} Qe8 {[%emt 0:05:05]} (26... Qb4 $142) 27. Bd2 $1 {[%emt 0:00:42] White is more active.} Nb4 {[%emt 0:06:11]} (27... Rc8 $16 {might work better.} 28. Bh7+ Kh8) 28. Bxb4 $18 {[%emt 0:00:29]} Bxb4 {[%emt 0:00:01]} 29. Qxc7 {[%emt 0:02:02]} Qd8 {[%emt 0:00:01]} 30. Qxd8 {[%emt 0:00:54]} Rfxd8 {[%emt 0:00:01]} 31. Bc4 {[%emt 0:00:15] Prevents Rd5.} Bxa5 {[%emt 0:01:56]} 32. d5 {[%emt 0:00:35][%cal Bd4d5,Bd5e6,Be6f7][%mdl 32]} Bc7 {[%emt 0:00:56]} 33. dxe6 {[%emt 0:00:57]} Bxe5 {[%emt 0:00:03]} 34. exf7+ {[%emt 0:00:15]} Kf8 {[%emt 0:00:01]} 35. b3 {[%emt 0:00:26][%cal Bb2b3,Bb3a4][%mdl 32]} b5 {[%emt 0:00:17]} (35... Rxd1+ $142 36. Rxd1 b5) 36. Bd5 {[%emt 0:00:24]} a5 {[%emt 0:00:04]} 37. f4 {[%emt 0:00:11]} Bf6 {[%emt 0:00:16]} 38. Rc6 {[%emt 0:03:12]} a4 {[%emt 0:01:30]} 39. bxa4 {[%emt 0:00:08]} b4 {[%emt 0:00:02]} 40. e4 {[%emt 0:01:20] Strongly threatening Rb1.} b3 {[%emt 0:00:07]} 41. Rb1 {[%emt 0:01:08]} b2 {[%emt 0:00:09]} 42. Kg2 {[%emt 0:01:10]} Rb4 {[%emt 0:00:19]} 43. Rc2 {[%emt 0:01:46]} Rxa4 {[%emt 0:01:19]} 44. Rcxb2 {[%emt 0:00:15]} Bxb2 {[%emt 0:00:30]} 45. Rxb2 {[%emt 0:00:30]} Rxd5 {[%emt 0:00:28]} (45... Ra5 {was called for.} 46. Ba2 Ra4) 46. exd5 {[%emt 0:00:00][%mdl 4096] Endgame KR-KR} Rd4 {[%emt 0:00:02]} 47. Rb7 $2 {[%emt 0:00:52]} (47. Rb5 $1 $18) 47... Rxd5 $14 {[%emt 0:00:03]} 48. Kf3 {[%emt 0:00:17]} g6 {[%emt 0:02:22] [#]} ({Black should play} 48... Rh5 $14) 49. g4 $1 $16 {[%emt 0:03:02]} Ra5 {[%emt 0:00:31] [#]} 50. h4 {[%emt 0:00:19]} (50. Rd7 $1 $16) 50... Ra3+ $11 {[%emt 0:00:58]} 51. Ke4 {[%emt 0:00:41]} Ra4+ $1 {[%emt 0:00:12]} 52. Ke5 {[%emt 0:00:30] And now Rd7 would win.} Ra5+ $1 {[%emt 0:00:07]} 53. Ke6 {[%emt 0:00:45] Intending Rb8+ and mate.} Ra6+ {[%emt 0:00:07]} 54. Kd5 {[%emt 0:00:19] aiming for Rd7.} Ra5+ {[%emt 0:00:26]} 55. Kd6 {[%emt 0:01:44] Rd7 is the strong threat.} Ra6+ {[%emt 0:00:21]} 56. Kc5 {[%emt 0:00:22]} Rf6 {[%emt 0:02:51]} 57. Rb4 {[%emt 0:00:01]} Kxf7 {[%emt 0:02:16]} 58. Ra4 {[%emt 0:01:03]} Re6 {[%emt 0:00:52] The position is equal.} 59. Ra7+ {[%emt 0:00:14]} Kf6 {[%emt 0:00:35]} 60. Kd5 {[%emt 0:00:23] g5+ would kill now.} Rb6 {[%emt 0:01:34]} 61. Ra5 {[%emt 0:01:10]} h5 {[%emt 0:01:29]} 62. gxh5 {[%emt 0:00:21]} gxh5 {[%emt 0:00:05]} 63. Kc4 {[%emt 0:00:05]} Rb1 {[%emt 0:00:46]} 64. Rxh5 {[%emt 0:00:08]} Rf1 {[%emt 0:00:03]} 65. f5 {[%emt 0:00:15]} Ke5 {[%emt 0:02:55] Blacks defense is rewarded with a draw.  Weighted Error Value: White=0.14 (very precise) /Black=0.15 (very precise)} 1/2-1/2

[Event "Silver Lake Festival 2022"]
[Site "Veliko Gradiste"]
[Date "2022.06.20"]
[Round "3.6"]
[White "Sadikhov, Ulvi"]
[Black "Manish Anto Cristiano F"]
[Result "1/2-1/2"]
[ECO "A29"]
[WhiteElo "2491"]
[BlackElo "2071"]
[Annotator "TA"]
[PlyCount "119"]
[EventDate "2022.06.16"]
[EventType "swiss"]
[EventCountry "SRB"]
[SourceTitle "playchess.com"]
[Source "ChessBase"]
[SourceQuality "1"]
[TimeControl "5400+30"]

{[%evp 17,119,2,10,-2,27,27,24,30,27,10,16,-33,-22,-33,54,58,63,58,56,52,46,25,27,30,31,9,12,12,29,27,30,22,36,19,17,28,16,6,13,8,21,43,50,58,89,90,112,35,38,34,47,26,28,26,25,0,0,0,0,0,8,2,41,25,8,0,0,0,296,0,197,183,212,59,27,0,0,0,0,0,0,0,0,0,0,0,0,0,0,0,0,0,0,0,0,0,0,0,0,0,0,0,0,0]} 1. c4 {[%emt 0:00:02]} e5 {[%emt 0:00:21]} 2. Nc3 {[%emt 0:00:07]} Nf6 {[%emt 0:00:11]} 3. g3 {[%emt 0:01:24]} d5 {[%emt 0:00:08]} 4. cxd5 {[%emt 0:00:16]} Nxd5 {[%emt 0:00:10]} 5. Bg2 {[%emt 0:00:13]} Nb6 {[%emt 0:00:07]} 6. Nf3 {[%emt 0:00:29]} Nc6 {[%emt 0:00:36]} 7. O-O {[%emt 0:00:07]} Be7 {[%emt 0:00:35]} 8. b3 {[%emt 0:00:07]} O-O {[%emt 0:00:23]} 9. Bb2 {[%emt 0:00:03]} Be6 {[%emt 0:02:12]} 10. Rc1 {[%emt 0:02:24][%cal Od2d4] A29: English Opening: Four Knights Variation with 4 g3.} f5 {[%emt 0:00:10]} 11. d3 {[%emt 0:03:07]} Bf6 {[%emt 0:00:09]} 12. Nd2 {[%emt 0:12:36] White has an edge.} Qd7 {[%emt 0:00:11]} 13. Nc4 {[%emt 0:07:54]} Rab8 {[%emt 0:04:54]} 14. Nb5 {[%emt 0:18:11]} (14. Re1 $11) 14... Nd5 $15 {[%emt 0:10:04]} 15. Nc3 {[%emt 0:04:16] [#]} Kh8 $146 {[%emt 0:11:28]} ({Black should play} 15... Nde7 $15) ({Predecessor:} 15... Nd4 16. e3 Nc6 17. Nxd5 Bxd5 18. e4 Bf7 19. f4 exf4 20. Bxf6 gxf6 21. Rxf4 fxe4 22. Bxe4 {1-0 (68) Jaroch,K (2357)-Jagodzinski,P (2233) Trzcianka 2019}) 16. Nxd5 $14 {[%emt 0:01:54]} Bxd5 {[%emt 0:00:14]} 17. e4 {[%emt 0:02:22]} Bxc4 {[%emt 0:16:40]} 18. dxc4 {[%emt 0:07:07]} Nd4 {[%emt 0:00:51]} 19. Bxd4 {[%emt 0:00:53]} exd4 {[%emt 0:01:08]} 20. Bh3 {[%emt 0:01:56]} g6 {[%emt 0:03:56]} 21. Re1 {[%emt 0:02:56]} d3 {[%emt 0:02:01]} 22. Qd2 {[%emt 0:08:11]} Qd4 {[%emt 0:16:40]} 23. exf5 {[%emt 0:02:51]} Bg5 $1 {[%emt 0:00:01]} 24. Qxg5 {[%emt 0:02:26]} d2 {[%emt 0:00:02] [#]} 25. Re7 $1 {[%emt 0:03:32]} dxc1=Q+ {[%emt 0:02:59]} (25... dxc1=R+ 26. Qxc1) 26. Qxc1 {[%emt 0:00:03] White wants to mate with Qh6.} Rfe8 {[%emt 0:00:52]} 27. Qe1 {[%emt 0:05:07]} Rxe7 {[%emt 0:01:12]} 28. Qxe7 $11 {[%emt 0:00:04][%mdl 4096] Endgame KQR-KQB} Qd1+ {[%emt 0:01:22]} 29. Bf1 {[%emt 0:02:23] And now f6 would win.} Qd6 {[%emt 0:00:09]} 30. Qe3 {[%emt 0:00:13] Strongly threatening Qc3+.} Rf8 {[%emt 0:04:10]} 31. fxg6 {[%emt 0:00:55]} (31. Qxa7 $6 b6 $11) 31... Qxg6 {[%emt 0:01:10]} 32. Bd3 {[%emt 0:05:06]} (32. Qxa7 $16 Qe4 33. Qa3) 32... Qf6 $14 {[%emt 0:00:36]} 33. Kg2 {[%emt 0:00:26]} (33. Qxa7 $2 b6 34. f4 Qd4+ 35. Kg2 Qxd3 36. Qxc7 Qe2+ 37. Kg1 Qe6 $19) 33... a6 {[%emt 0:03:15]} 34. h4 {[%emt 0:00:23]} c6 {[%emt 0:02:37]} 35. c5 {[%emt 0:01:11]} Rf7 {[%emt 0:01:37]} 36. f3 {[%emt 0:01:00]} Qb2+ {[%emt 0:01:43]} 37. Kh3 {[%emt 0:00:30] Hoping for Qe8+.} Qf6 {[%emt 0:00:40]} 38. Be4 {[%emt 0:01:41]} Qe5 {[%emt 0:01:53]} 39. g4 {[%emt 0:01:11]} Qa1 {[%emt 0:01:35]} 40. Bf5 {[%emt 0:00:37] Threatens to win with Be6.} Qf6 {[%emt 0:01:21]} 41. h5 {[%emt 0:01:47]} Re7 {[%emt 0:00:43]} 42. Qd3 {[%emt 0:01:40]} Re5 $2 {[%emt 0:00:35][%mdl 8192] [#]} (42... h6 $11 {and Black has nothing to worry.}) 43. Qd7 $2 {[%emt 0:00:39]} ({And not} 43. Bxh7 Rd5 44. Qe4 Re5 $11) (43. Qd6 $1 $18 {[%cal Rd6f6]} Kg7 44. Qxf6+ Kxf6 45. Bxh7) 43... Qe7 {[%emt 0:00:18]} (43... Re7 $1 $11 {and Black stays safe.} 44. Qd2 h6) 44. Qd6 $18 {[%emt 0:01:29]} Re1 {[%emt 0:00:16]} 45. Qd4+ {[%emt 0:00:39]} (45. Kg3 $18) 45... Qe5 $1 $14 {[%emt 0:00:29]} 46. Qd8+ {[%emt 0:00:05]} Kg7 $1 {[%emt 0:00:06] ( -> ...Rh1+). The position is equal.} 47. Qd7+ {[%emt 0:00:35]} Qe7 {[%emt 0:00:08]} 48. Qd4+ {[%emt 0:00:19]} Qe5 $1 {[%emt 0:00:08]} 49. Qd7+ {[%emt 0:00:06]} Qe7 {[%emt 0:00:04]} 50. Qd6 {[%emt 0:01:23]} Qe3 {[%emt 0:01:33] Prevents h6+.} 51. Qd7+ {[%emt 0:00:30]} Qe7 {[%emt 0:00:18]} (51... Kf6 $5 52. Qd8+ (52. Qxh7 $2 {is a self mate.} Qxf3+ 53. Kh4 Rh1#) 52... Kg7 $11) 52. Qd6 {[%emt 0:00:32]} Qe3 {[%emt 0:00:05] Against h6+} 53. Qc7+ {[%emt 0:00:19]} Qe7 {[%emt 0:00:09]} 54. Qf4 {[%emt 0:00:40]} Rh1+ {[%emt 0:05:20]} 55. Kg2 {[%emt 0:00:03] Qd4+ is the strong threat.} Qe2+ {[%emt 0:00:11]} 56. Kxh1 {[%emt 0:00:10] Really sharp!} Qf1+ {[%emt 0:00:05]} 57. Kh2 {[%emt 0:00:03] White threatens h6+ and mate.} Qf2+ {[%emt 0:00:08]} 58. Kh3 {[%emt 0:00:12]} Qf1+ {[%emt 0:00:06]} 59. Kh4 {[%emt 0:00:33] h6+ would kill now.} Qh1+ {[%emt 0:00:07]} 60. Kg3 {[%emt 0:00:05] Weighted Error Value: White=0.19 (very precise) /Black=0.24 (precise)} 1/2-1/2

[Event "Silver Lake Festival 2022"]
[Site "Veliko Gradiste"]
[Date "2022.06.20"]
[Round "3.7"]
[White "Martic, Ivan"]
[Black "Song, Raymond"]
[Result "0-1"]
[ECO "D39"]
[WhiteElo "2314"]
[BlackElo "2485"]
[Annotator "TA"]
[PlyCount "90"]
[EventDate "2022.06.16"]
[EventType "swiss"]
[EventCountry "SRB"]
[SourceTitle "playchess.com"]
[Source "ChessBase"]
[SourceQuality "1"]
[TimeControl "5400+30"]

{[%evp 14,90,0,0,0,0,0,-60,-64,-47,-58,-56,-59,-63,-54,-106,-98,-104,-98,-150,-159,-140,-110,-248,-118,-109,-106,-166,-121,-213,-228,-245,-144,-144,-144,-144,-144,-191,-185,-205,-144,-214,-66,-43,-31,-34,-18,-348,-62,-70,-75,-98,-83,-255,-250,-277,-273,-135,-559,-512,-547,-528,-509,-714,-696,-2883,-2685,-5600,-2318,-2395,-684,-660,-654,-1795,-2126,-1813,-1399,-1049,-1000]} 1. d4 Nf6 2. c4 e6 3. Nf3 d5 4. Nc3 Bb4 5. Qa4+ Nc6 6. Bg5 dxc4 7. a3 Bxc3+ 8. bxc3 Qd5 {D39: Queen's Gambit Declined: Ragozin Defence with 5 Bg5 dxc4.} 9. Bxf6 gxf6 10. g3 (10. Nd2 $1 $11) 10... Bd7 $15 {[%cal Oc6d4] aiming for ...Nxd4! Black is slightly better.} 11. Qc2 Na5 {[%cal Bc6a5,Ba5b3,Bb3d2][%mdl 32]} 12. e4 Qc6 13. Nd2 Nb3 14. Rb1 (14. Rd1 $15) 14... Nxd2 $17 {Black is more active.} 15. Kxd2 e5 {[#]} 16. f3 $146 (16. Bg2 $142) ({Predecessor:} 16. Bg2 Qd6 17. Ke2 Qxa3 18. dxe5 Ba4 19. Qc1 Qxc1 20. Rhxc1 Bb3 21. exf6 a5 22. e5 {1-0 (42) Acosta,P (2029)-Williams,J (2200) Bento Goncalves 2010}) 16... b5 17. Ke3 Qd6 18. Be2 (18. a4 $17) 18... h5 (18... Qxa3 $2 19. Rhd1) (18... exd4+ $19 19. cxd4 Qxa3+ 20. Kf2 a5) 19. a4 a6 20. Qb2 (20. Qd2 $17) 20... h4 21. Kf2 (21. g4 $17) 21... exd4 $19 22. cxd4 c5 (22... f5 $1 $19 {Strongly threatening ...fxe4.} 23. e5 Qd5) 23. d5 $17 Qe5 $1 24. Qxe5+ fxe5 25. Ke3 (25. g4 $17) 25... Ke7 $19 26. g4 Kd6 27. g5 (27. Kd2 $17 {was called for.}) 27... b4 (27... c3 $19 {White must now prevent ...b4.} 28. Rbc1 (28. axb5 $2 axb5 29. Rhf1 b4 $19) 28... Rhg8) 28. Bxc4 $15 Bxa4 {And now ...Bb5 would win.} (28... Rhg8 $5 {[%cal Rg8g5]} 29. Rhg1 Bxa4 $17) 29. f4 Bb5 30. Rbc1 {[%mdl 8192]} (30. fxe5+ $11 Kxe5 31. Kd3) 30... Bxc4 $2 (30... exf4+ $19 31. Kxf4 Bxc4 32. Rxc4 a5) 31. fxe5+ Kxe5 {...Bb5 is the strong threat.} 32. Rxc4 $19 {[%mdl 4096] Endgame [#] KRR-KRR} b3 $1 {Threatens to win with ...Rhb8.} 33. Kd3 $2 (33. Rf1 $17) 33... a5 {Hoping for ...a4.} 34. Rf1 a4 35. Rf5+ $2 (35. Kc3 a3 36. Kxb3 (36. Rf5+ $2 Kd6 $19)) 35... Kd6 36. Rf6+ {Black is clearly winning.} Kd7 37. Rxf7+ {[#]} Ke8 $1 ({Weaker is} 37... Kd6 38. Rf6+ Kd7 39. Rxc5 $11) 38. Rf1 {[%emt 0:22:13]} a3 {[%emt 0:18:44]} 39. Rxc5 {[%emt 0:00:30]} Rf8 {[%emt 0:00:30]} 40. Rg1 {[%emt 0:00:30]} a2 {[%emt 0:00:30]} 41. Rb5 {[%emt 0:00:30]} a1=Q {[%emt 0:00:30]} (41... Rf2 $142 42. Rxb3 Rf3+ 43. Kc2 Rxb3) 42. Rxa1 {[%emt 0:00:30]} Rxa1 {[%emt 0:00:30]} 43. Rb8+ {[%emt 0:00:30]} Ke7 {[%emt 0:00:30]} 44. Rb7+ {[%emt 0:00:30]} Kd6 {[%emt 0:00:30] ( -> ...Rf3+)} 45. Kd4 {[%emt 0:00:30]} Rd1+ {[%emt 0:00:30] Weighted Error Value: White=0.86/Black=0.47} 0-1

[Event "Silver Lake Festival 2022"]
[Site "Veliko Gradiste"]
[Date "2022.06.20"]
[Round "3.8"]
[White "Krstulovic, Alex"]
[Black "Doraszelski, Alexander"]
[Result "1-0"]
[ECO "A47"]
[WhiteElo "2413"]
[BlackElo "1887"]
[Annotator "TA"]
[PlyCount "117"]
[EventDate "2022.06.16"]
[EventType "swiss"]
[EventCountry "SRB"]
[SourceTitle "playchess.com"]
[Source "ChessBase"]
[SourceQuality "1"]
[TimeControl "5400+30"]

{[%evp 16,117,6,8,7,0,3,4,11,2,31,37,33,16,81,77,89,62,59,54,107,50,50,33,69,29,81,75,120,103,108,100,106,96,125,91,101,86,89,27,99,68,56,7,12,14,14,0,0,0,29,16,39,0,242,232,251,247,259,252,227,88,83,0,0,0,0,0,1309,214,656,101,99,118,224,190,340,332,4132,574,501,0,1194,628,628,628,553,584,988,382,967,967,5318,250,257,229,279,266,464,440,1547,797,4134,1283]} 1. d4 {[%emt 0:03:52]} d5 {[%emt 0:00:21]} 2. Nf3 {[%emt 0:00:17]} e6 {[%emt 0:00:11]} 3. Nbd2 {[%emt 0:01:50]} Nf6 {[%emt 0:00:18]} 4. e3 {[%emt 0:00:05]} Be7 {[%emt 0:02:06]} 5. Bd3 {[%emt 0:00:11]} b6 {[%emt 0:01:09]} 6. O-O {[%emt 0:00:52]} O-O {[%emt 0:00:21]} 7. b3 {[%emt 0:00:08]} Bb7 {[%emt 0:02:48]} 8. Bb2 {[%emt 0:00:10]} c5 {[%emt 0:04:56]} 9. Re1 {[%emt 0:01:15]} Nc6 {[%emt 0:01:31] A47: 1 d4 Nf6 2 Nf3 b6: Torre, London and Colle Systems.} 10. a3 {[%emt 0:00:18]} Nd7 {[%emt 0:06:16]} 11. c4 {[%emt 0:10:30]} Bf6 {[%emt 0:04:24] The position is equal.} 12. Qc2 {[%emt 0:01:36] [#]} h6 $146 {[%emt 0:00:36]} ({Predecessor:} 12... g6 13. Rad1 cxd4 14. exd4 Ne7 15. Ne5 Rc8 16. Qb1 Bg7 17. Ndf3 Nf5 18. Nxd7 Qxd7 {1-0 (56) Plat,V (2589)-Divya,D (2322) Budapest 2020}) 13. Rad1 {[%emt 0:00:32]} Rc8 {[%emt 0:03:04]} 14. Qb1 {[%emt 0:06:49]} Ba6 {[%emt 0:07:20]} (14... Rc7 $11 {keeps the balance.}) 15. Bh7+ $16 {[%emt 0:03:46]} Kh8 {[%emt 0:00:13]} 16. cxd5 {[%emt 0:00:04]} exd5 {[%emt 0:00:21]} 17. Bf5 {[%emt 0:01:00]} cxd4 {[%emt 0:05:22]} (17... Re8 $14) 18. exd4 {[%emt 0:01:01]} (18. Nxd4 $6 Nxd4 19. exd4 (19. Bxd4 Bxd4 20. exd4 g6 $11) 19... g6 $14) (18. e4 $1 $16) 18... Rc7 $14 {[%emt 0:06:16]} 19. Ne5 {[%emt 0:01:39]} Bc8 {[%emt 0:04:31]} 20. f4 {[%emt 0:01:20] White is much more active.} Ndxe5 {[%emt 0:02:41]} (20... Be7 $11) 21. dxe5 $16 {[%emt 0:02:49]} Be7 {[%emt 0:02:21]} 22. Nf3 {[%emt 0:02:48]} Bc5+ {[%emt 0:00:51]} 23. Kh1 {[%emt 0:00:17]} a5 {[%emt 0:02:47]} 24. Bxc8 {[%emt 0:01:06]} Qxc8 {[%emt 0:01:28]} 25. f5 {[%emt 0:02:59]} Re8 {[%emt 0:02:44]} 26. e6 {[%emt 0:26:14]} (26. Rxd5 $6 Ne7 27. Rd3 Nxf5 $11) 26... d4 {[%emt 0:03:12]} 27. f6 {[%emt 0:19:12]} ({White should try} 27. Bxd4 $16 {Bb2 is the strong threat.} Nxd4 28. Nxd4) 27... Rxe6 {[%emt 0:00:19]} (27... gxf6 $11 {remains equal.} 28. exf7 Rxf7) 28. Rxe6 {[%emt 0:00:04]} Qxe6 {[%emt 0:01:49]} 29. Re1 {[%emt 0:00:05]} (29. b4 $14 {feels stronger.} Qxf6 30. bxc5 bxc5 31. Rc1) 29... Qd7 $11 {[%emt 0:00:42]} 30. fxg7+ {[%emt 0:01:37]} Kxg7 {[%emt 0:01:16]} 31. Qd3 {[%emt 0:05:00]} Qd8 {[%emt 0:13:21]} 32. Re4 {[%emt 0:03:20][%cal Be1e4,Be4f4,Bf4f1][%mdl 32]} f5 {[%emt 0:01:48]} 33. Rf4 {[%emt 0:01:11]} (33. Nxd4 Nxd4 34. Rxd4 Bxd4 35. Bxd4+ Kg8 36. Qg3+ Kh7 $17) 33... Rf7 {[%emt 0:02:26]} 34. Nh4 {[%emt 0:02:48]} Ne7 $2 {[%emt 0:02:58]} (34... Kf8 $11) 35. b4 $1 $18 {[%emt 0:00:40]} (35. Bxd4+ $6 Kg8 $16) (35. Nxf5+ Nxf5 36. Rxf5 Qd6 $11) 35... Nd5 {[%emt 0:03:19]} 36. Nxf5+ {[%emt 0:00:21]} (36. Bxd4+ Bxd4 37. Rxd4 (37. Qxd4+ Qf6 $11) 37... Qg5 $16) 36... Kf8 {[%emt 0:00:28]} 37. Rf1 {[%emt 0:00:15]} axb4 {[%emt 0:00:55] [#]} 38. axb4 {[%emt 0:00:39]} (38. Bc1 $1 $18 {is the precise move to win.} Ke8 39. Qe4+ (39. Bxh6 Ne3 $16) 39... Ne7 40. Re1 (40. Bxh6 Qd5 $14) (40. axb4 Bxb4 41. Bxh6 Qd5 $18) 40... bxa3 41. Nxh6) 38... Nxb4 $16 {[%emt 0:00:02]} 39. Qh3 {[%emt 0:00:45]} (39. Qe2 $16 {Threatens to win with Bc1.} Qe8 40. Qh5) 39... Qd5 $1 $11 {[%emt 0:06:06]} 40. Qxh6+ $40 {[%emt 0:00:32][%mdl 128] White has some attack.} Ke8 {[%emt 0:00:01]} 41. Qg6 {[%emt 0:00:28] Dancing on a razor blade.} Nd3 $2 {[%emt 0:02:16][%mdl 8192]} (41... Kd7 $11) 42. Bxd4 $2 {[%emt 0:00:26]} (42. Nh6 {[%cal Rf1f7]} Ne5 43. Qg8+ Ke7 44. Qg5+ Ke8 45. Nxf7 Qxf7 46. Qxe5+ Qe7 47. Qd5) 42... Bxd4 $2 {[%emt 0:02:16] [#]} (42... Kd7) 43. Nxd4 $2 {[%emt 0:00:37]} (43. Nd6+ $1 $18 Qxd6 44. Qxf7+ Kd8 45. Qg8+ Kc7 46. Qh7+ Kb8 47. Qxd3) 43... Ne5 $16 {[%emt 0:00:31]} 44. Qg8+ {[%emt 0:00:11]} ({And not} 44. Re1 Qxd4 45. Qg8+ Kd7 $19) 44... Ke7 {[%emt 0:00:33]} (44... Kd7 $16 45. Rxf7+ Nxf7) 45. Qg5+ $18 {[%emt 0:00:49]} Ke8 {[%emt 0:01:36]} (45... Kd6 $142 46. Qd8+ Kc5 47. Rc1+ Nc4) 46. Nf3 {[%emt 0:00:27] Strongly threatening Re1.} ({Not} 46. Rxf7 Kxf7 47. Qf4+ Ke8 $16) 46... Qa5 {[%emt 0:02:04]} (46... Qe4 47. Rd1 Rxf3) 47. Qg8+ {[%emt 0:00:28]} (47. Rc1 $142 {White wants to mate with Rc8+.} Rxf3 48. gxf3) 47... Ke7 {[%emt 0:00:12]} 48. Qg5+ {[%emt 0:00:05]} (48. Rd1 $142 Rxf3 49. Qd8+ Kf7 50. Qc7+ Kf6 51. gxf3) 48... Ke8 $1 {[%emt 0:00:01]} 49. Rd1 {[%emt 0:00:49][%csl Gg5][%cal Rd1d8]} Nd7 {[%emt 0:01:16]} 50. Qg8+ {[%emt 0:00:16]} Nf8 {[%emt 0:00:13]} 51. Qg3 {[%emt 0:00:36]} Re7 {[%emt 0:00:32]} 52. Qb8+ {[%emt 0:00:22]} Kf7 {[%emt 0:00:03]} 53. Rf1 {[%emt 0:00:09] Nd4+ would kill now.} Kg8 {[%emt 0:00:58]} 54. h4 $2 {[%emt 0:01:15]} (54. Ng1 Kh7 55. Qxf8) 54... Qb5 {[%emt 0:00:22]} 55. Rd1 {[%emt 0:00:33]} Qf5 {[%emt 0:00:53]} 56. Qxb6 {[%emt 0:00:17]} Re2 $2 {[%emt 0:00:33]} (56... Re4 57. Rd8 Rf4) 57. Qb3+ {[%emt 0:00:05] White is clearly winning.} Kh8 {[%emt 0:00:15]} (57... Qf7 $142 58. Rd5 Ne6 59. Qb8+ Qf8) 58. Qc3+ {[%emt 0:00:17]} Kh7 {[%emt 0:00:37]} 59. Nd4 {[%emt 0:00:18] Weighted Error Value: White=0.74/Black=0.43} (59. Ng5+ $142 Kg6 60. Qh8) 1-0